bitfinex/quotes_BTCUSD_20250211
["timestamp","ask_amount","ask_price","bid_price","bid_amount"]
[1739282997534,0.37027248,97189.0,97188.0,0.00313312]
[1739282997763,0.36927248,97189.0,97188.0,0.00313312]
[1739282997967,0.38427248,97189.0,97188.0,0.00413312]
[1739282998179,0.39459974,97189.0,97188.0,0.00413312]
[1739282999256,4.11949974,97189.0,97188.0,0.00413312]
[1739282999460,0.205833,97166.0,97161.0,0.04292611]
[1739282999874,0.15438,97163.0,97161.0,0.04292611]
[1739283000045,0.15438,97163.0,97157.0,0.00022386]
[1739283000251,0.154386,97159.0,97157.0,0.00022386]
[1739283000600,0.154387,97158.0,97157.0,0.00022386]
[1739283002483,0.154387,97158.0,97157.0,0.00722386]
[1739283002885,0.154387,97158.0,97157.0,0.00922386]
[1739283003084,0.154387,97158.0,97157.0,0.00222386]
[1739283003319,0.154387,97158.0,97157.0,0.00422386]
[1739283003529,0.41625065,97158.0,97157.0,0.00522386]
[1739283003723,0.44609625,97158.0,97157.0,0.00522386]
[1739283003967,0.44609625,97158.0,97157.0,0.00022386]
[1739283004172,0.44609625,97158.0,97157.0,0.00122386]
[1739283004386,0.51579625,97158.0,97157.0,8.6e-07]
[1739283004586,0.15443,97131.0,97130.0,0.03979385]
[1739283004787,2.17683365,97131.0,97130.0,0.00013305]
[1739283004962,5.74235771,97131.0,97130.0,0.00013305]
[1739283005377,5.71254265,97131.0,97130.0,0.00013305]
[1739283005556,5.71254265,97131.0,97086.0,0.206002]
[1739283005557,0.154475,97103.0,97067.0,0.07672323]
[1739283005755,0.154475,97103.0,97081.0,0.08256914]
[1739283005756,0.154508,97082.0,97081.0,0.08256914]
[1739283005981,0.33183835,97082.0,97081.0,0.08256914]
[1739283006183,0.154516,97077.0,97067.0,0.00022323]
[1739283006379,0.154516,97077.0,97076.0,0.0006674]
[1739283007168,0.40701965,97077.0,97076.0,0.0006674]
[1739283007569,0.40901965,97077.0,97076.0,0.0006674]
[1739283008433,0.40801965,97077.0,97076.0,0.0006674]
[1739283009095,0.41001965,97077.0,97076.0,0.0006674]
[1739283009493,0.25650365,97077.0,97048.0,0.05310749]
[1739283009643,0.154553,97054.0,97048.0,0.05324066]
[1739283010002,0.154554,97053.0,97048.0,0.05324066]
[1739283010243,0.154556,97052.0,97048.0,0.00013317]
[1739283010378,0.10250365,97076.0,97048.0,0.00013317]
[1739283010788,0.15,97075.0,97048.0,0.00013317]
[1739283010998,0.02050481,97072.0,97060.0,0.21431941]
[1739283011196,0.206056,97061.0,97048.0,0.00013317]
[1739283011398,0.001,97053.0,97048.0,0.00013317]
[1739283012005,0.154559,97050.0,97048.0,0.00013317]
[1739283013703,0.154561,97049.0,97048.0,0.00413317]
[1739283014333,0.154561,97049.0,97048.0,0.00435703]
[1739283015496,0.155561,97049.0,97048.0,0.00435703]
[1739283015903,0.154561,97049.0,97048.0,0.00435703]
[1739283016306,0.154561,97049.0,97048.0,0.00035703]
[1739283016307,0.155561,97049.0,97048.0,0.00035703]
[1739283016515,0.155561,97049.0,97048.0,0.00335703]
[1739283016949,0.155561,97049.0,97048.0,0.00035703]
[1739283017155,0.155561,97049.0,97048.0,0.00135703]
[1739283018277,0.001,97049.0,97048.0,0.00135703]
[1739283018474,0.155561,97049.0,97048.0,0.00135703]
[1739283018878,0.154561,97049.0,97048.0,0.00135703]
[1739283019087,0.004,97049.0,97048.0,0.00135703]
[1739283019491,0.154561,97049.0,97048.0,0.00035703]
[1739283019750,0.156561,97049.0,97048.0,0.00035703]
[1739283019951,0.159561,97049.0,97048.0,0.00035703]
[1739283020286,0.005,97049.0,97048.0,0.00035703]
[1739283020690,0.005,97049.0,97048.0,0.15491903]
[1739283020873,0.005,97049.0,97048.0,0.00035703]
[1739283021485,0.002,97049.0,97048.0,0.00035703]
[1739283021900,0.004,97049.0,97048.0,0.00035703]
[1739283022554,0.002,97049.0,97048.0,0.00035703]
[1739283022894,0.003,97049.0,97048.0,0.00035703]
[1739283023251,0.15456,97050.0,97048.0,0.00035703]
[1739283024233,0.002,97049.0,97048.0,0.00035703]
[1739283024674,0.25550365,97049.0,97048.0,0.00035703]
[1739283024879,0.26550365,97049.0,97048.0,0.00035703]
[1739283025072,0.26450365,97049.0,97048.0,0.00035703]
[1739283025497,0.25550365,97049.0,97048.0,0.00035703]
[1739283025873,0.25561035,97049.0,97048.0,0.00035703]
[1739283026221,4.49311035,97049.0,97048.0,0.00035703]
[1739283026431,4.51411035,97049.0,97048.0,0.00035703]
[1739283026647,4.52411035,97049.0,97048.0,0.00035703]
[1739283026847,4.51711035,97049.0,97048.0,0.00035703]
[1739283027051,4.52711035,97049.0,97048.0,0.00035703]
[1739283027260,4.53411035,97049.0,97048.0,0.00035703]
[1739283027592,4.54111035,97049.0,97048.0,0.00035703]
[1739283028200,4.53639035,97049.0,97048.0,0.00035703]
[1739283028412,4.55039035,97049.0,97048.0,0.00035703]
[1739283028992,4.53639035,97049.0,97048.0,0.00035703]
[1739283029420,0.154604,97022.0,97021.0,0.04004504]
[1739283029677,0.154604,97022.0,97021.0,0.04013655]
[1739283029869,0.154604,97022.0,97021.0,9.151e-05]
[1739283030041,0.25710765,97022.0,97021.0,9.151e-05]
[1739283031026,0.40710765,97022.0,97021.0,9.151e-05]
[1739283031688,0.41010765,97022.0,97021.0,9.151e-05]
[1739283031859,0.307604,97022.0,97021.0,9.151e-05]
[1739283032059,0.155604,97022.0,97021.0,9.151e-05]
[1739283032498,0.168604,97022.0,97021.0,9.151e-05]
[1739283032869,0.154604,97022.0,97021.0,9.151e-05]
[1739283033416,0.18066826,97022.0,97021.0,9.151e-05]
[1739283033732,0.17566826,97022.0,97021.0,9.151e-05]
[1739283033940,0.18066826,97022.0,97021.0,9.151e-05]
[1739283034367,0.18766826,97022.0,97021.0,9.151e-05]
[1739283034711,0.18066826,97022.0,97021.0,9.151e-05]
[1739283035109,0.19266826,97022.0,97021.0,9.151e-05]
[1739283035592,0.19266826,97022.0,97010.0,0.21431941]
[1739283035593,0.154608,97019.0,97010.0,0.171058]
[1739283035741,0.03819706,97022.0,97010.0,0.171058]
[1739283036164,0.154613,97017.0,97010.0,0.171058]
[1739283036423,0.154614,97016.0,97010.0,0.171058]
[1739283036631,0.154619,97013.0,97000.0,0.21431941]
[1739283036845,0.20614,97021.0,96991.0,0.0494]
[1739283037065,0.004,97019.0,96991.0,0.0494]
[1739283037280,0.154608,97019.0,96995.0,0.023]
[1739283037478,0.15,97020.0,96995.0,0.023]
[1739283037681,0.154636,97002.0,96995.0,0.023]
[1739283038037,0.154631,97006.0,96995.0,0.023]
[1739283038246,0.206151,97016.0,96997.0,0.023]
[1739283038247,0.154614,97016.0,96997.0,0.023]
[1739283038594,0.15462,97012.0,97002.0,0.023]
[1739283038794,0.009,97019.0,96999.0,0.023]
[1739283038997,0.20616,97012.0,96999.0,0.12550365]
[1739283039124,0.154627,97008.0,96999.0,0.12550365]
[1739283039330,0.001,97006.0,96999.0,0.12550365]
[1739283040137,0.001,97006.0,96999.0,0.28014265]
[1739283040351,0.001,97006.0,97001.0,0.023]
[1739283040551,0.206151,97017.0,97001.0,0.023]
[1739283040775,0.154625,97009.0,97000.0,0.023]
[1739283041525,0.001,97008.0,97000.0,0.023]
[1739283042593,0.001,97009.0,97000.0,0.023]
[1739283043835,0.206163,97011.0,96787.0,0.4]
[1739283043836,0.206168,97008.0,96990.0,0.14299123]
[1739283044049,0.206157,97014.0,96996.0,0.023]
[1739283044276,0.001,97008.0,96996.0,0.023]
[1739283044678,0.206145,97019.0,96999.0,0.023]
[1739283044879,0.154628,97007.0,96999.0,0.023]
[1739283045030,0.154629,97006.0,96999.0,0.023]
[1739283045440,0.154634,97004.0,96999.0,0.023]
[1739283046213,0.210168,97008.0,96999.0,0.023]
[1739283046422,0.003,97008.0,96999.0,0.023]
[1739283046634,0.154628,97007.0,96999.0,0.023]
[1739283047055,0.154632,97005.0,96999.0,0.023]
[1739283047266,0.154628,97007.0,96999.0,0.023]
[1739283047464,0.154631,97005.0,96999.0,0.023]
[1739283047855,0.154629,97006.0,96999.0,0.023]
[1739283048053,0.154629,97007.0,96999.0,0.023]
[1739283048284,0.001,97005.0,96999.0,0.023]
[1739283048685,0.154633,97004.0,96999.0,0.023]
[1739283048886,0.154633,97004.0,96996.0,0.023]
[1739283049041,0.001,97006.0,96996.0,0.023]
[1739283049244,0.154632,97004.0,96996.0,0.023]
[1739283049461,0.154632,97005.0,96996.0,0.023]
[1739283049679,0.001,97006.0,96996.0,0.023]
[1739283050020,0.001,97006.0,97000.0,0.023]
[1739283050199,0.206155,97015.0,96999.0,0.00022428]
[1739283050407,0.154627,97008.0,97006.0,0.023]
[1739283050568,0.154627,97008.0,97006.0,0.022]
[1739283050769,0.154628,97007.0,96999.0,0.00022428]
[1739283051249,0.154625,97009.0,96999.0,0.00022428]
[1739283051461,0.154627,97008.0,96999.0,0.00022428]
[1739283051668,0.154628,97007.0,96999.0,0.00022428]
[1739283052304,0.001,97007.0,96999.0,0.15486428]
[1739283052514,0.001,97007.0,96999.0,0.00022428]
[1739283052694,0.001,97007.0,96999.0,0.02322428]
[1739283053433,0.001,97007.0,96999.0,0.12572793]
[1739283053633,0.001,97007.0,97006.0,0.023]
[1739283054521,0.0001068,97011.0,97007.0,0.023]
[1739283054724,0.0001068,97011.0,97000.0,0.023]
[1739283054931,0.001,97007.0,97000.0,0.023]
[1739283055367,0.206172,97006.0,96999.0,0.00022428]
[1739283055572,0.154628,97007.0,96999.0,0.00022428]
[1739283055819,0.0021068,97011.0,97000.0,0.154637]
[1739283056015,0.0021068,97011.0,96999.0,0.02322428]
[1739283056221,0.154624,97010.0,96999.0,0.02322428]
[1739283056444,0.0021068,97011.0,96999.0,0.02322428]
[1739283057055,0.154624,97010.0,96999.0,0.02322428]
[1739283057276,0.154626,97008.0,96999.0,0.02322428]
[1739283057890,0.154624,97009.0,96999.0,0.02322428]
[1739283058105,0.0001068,97011.0,96999.0,0.02322428]
[1739283058317,0.154623,97010.0,96999.0,0.02322428]
[1739283058521,0.0001068,97011.0,96999.0,0.02322428]
[1739283058726,0.02995271,97010.0,96999.0,0.02322428]
[1739283058954,0.18457571,97010.0,96999.0,0.02322428]
[1739283059158,0.154623,97010.0,96999.0,0.02322428]
[1739283059368,0.02996937,97009.0,96999.0,0.02322428]
[1739283059996,0.18459237,97010.0,96999.0,0.02322428]
[1739283060210,0.0001068,97011.0,97007.0,0.023]
[1739283060432,0.0001068,97011.0,97010.0,0.154623]
[1739283060646,0.0002396,97022.0,97021.0,0.177605]
[1739283060879,0.0002396,97022.0,97021.0,0.54398465]
[1739283061098,0.0002396,97022.0,97021.0,0.55450865]
[1739283061537,0.0002396,97022.0,97021.0,0.56492559]
[1739283061753,0.154507,97083.0,97048.0,0.278962]
[1739283062009,0.205995,97090.0,97048.0,0.40446565]
[1739283062214,0.08256914,97089.0,97048.0,0.55446565]
[1739283062437,0.02109983,97088.0,97048.0,0.55446565]
[1739283062672,0.154507,97083.0,97048.0,0.55446565]
[1739283062883,0.15451,97081.0,97048.0,0.55446565]
[1739283063300,0.0021067,97049.0,97048.0,0.56506867]
[1739283063516,0.0031067,97049.0,97048.0,0.56506867]
[1739283063733,0.0021067,97049.0,97048.0,0.56506867]
[1739283065011,0.02114119,97099.0,97048.0,0.56506867]
[1739283065012,0.08256914,97097.0,97080.0,0.14299123]
[1739283065247,0.08256914,97097.0,97070.0,0.14299123]
[1739283065248,0.154512,97080.0,97070.0,0.14299123]
[1739283065454,0.08270249,97097.0,97071.0,0.023]
[1739283065455,0.00013335,97097.0,97071.0,0.023]
[1739283065661,0.154514,97079.0,97071.0,0.023]
[1739283065870,0.205985,97094.0,97071.0,0.023]
[1739283066090,0.00013335,97097.0,97071.0,0.023]
[1739283066296,0.00013335,97097.0,97070.0,0.14299123]
[1739283066517,0.154507,97083.0,97071.0,0.023]
[1739283066732,0.21811235,97097.0,97071.0,0.023]
[1739283066945,0.01213335,97097.0,97088.0,0.023]
[1739283067157,0.00013335,97097.0,97088.0,0.023]
[1739283067371,0.154489,97094.0,97088.0,0.023]
[1739283067779,0.205981,97096.0,97088.0,0.023]
[1739283067987,0.205983,97095.0,97088.0,0.023]
[1739283068165,0.154494,97091.0,97080.0,0.14299123]
[1739283068396,0.154494,97091.0,97081.0,0.12550365]
[1739283068814,0.154525,97072.0,97060.0,0.14299123]
[1739283068999,0.154518,97076.0,97063.0,0.10250365]
[1739283069410,0.15452,97075.0,97064.0,0.023]
[1739283069547,0.154519,97076.0,97066.0,0.023]
[1739283069752,0.005,97091.0,97060.0,0.14299123]
[1739283069954,0.154497,97089.0,97060.0,0.14299123]
[1739283070155,0.154524,97073.0,97060.0,0.14299123]
[1739283070359,0.10250365,97089.0,97060.0,0.14299123]
[1739283070584,0.154527,97070.0,97061.0,0.023]
[1739283070783,0.154529,97070.0,97061.0,0.023]
[1739283071352,0.154528,97070.0,97061.0,0.023]
[1739283071589,0.02094927,97077.0,97061.0,0.023]
[1739283071590,0.154535,97066.0,97061.0,0.023]
[1739283071797,0.206024,97076.0,97053.0,0.232654]
[1739283071798,0.206033,97072.0,97055.0,0.206068]
[1739283072119,0.0813,97107.0,97062.0,0.023]
[1739283072333,0.154514,97079.0,97071.0,0.023]
[1739283072469,0.206005,97085.0,97071.0,0.023]
[1739283072692,0.154512,97080.0,97071.0,0.023]
[1739283072893,0.206013,97082.0,97071.0,0.023]
[1739283073261,0.001,97072.0,97071.0,0.023]
[1739283073585,0.001,97072.0,97065.0,0.023]
[1739283073805,0.001,97072.0,97068.0,0.023]
[1739283074010,0.154511,97080.0,97068.0,0.023]
[1739283074182,0.154513,97079.0,97066.0,0.023]
[1739283074406,0.00013332,97085.0,97066.0,0.023]
[1739283074541,0.0001066,97072.0,97070.0,0.023]
[1739283075158,0.0001066,97072.0,97071.0,0.023]
[1739283075367,0.0001066,97072.0,97071.0,0.41055984]
[1739283075560,0.0001066,97072.0,97071.0,0.40952965]
[1739283076126,0.0011066,97072.0,97071.0,0.40952965]
[1739283076569,0.0001066,97072.0,97071.0,0.40952965]
[1739283076744,0.0021066,97072.0,97071.0,0.40952965]
[1739283077203,0.0021066,97072.0,97071.0,0.55952965]
[1739283077935,0.0031066,97072.0,97071.0,0.55952965]
[1739283080598,0.0031066,97072.0,97071.0,0.43002965]
[1739283080799,0.0031066,97072.0,97071.0,0.10250365]
[1739283081029,0.0031066,97072.0,97071.0,0.25702965]
[1739283081390,0.0031066,97072.0,97071.0,0.28002965]
[1739283081585,0.0031066,97072.0,97071.0,0.023]
[1739283081797,0.0001066,97072.0,97071.0,0.023]
[1739283082201,0.0011066,97072.0,97071.0,0.023]
[1739283082794,0.0001066,97072.0,97071.0,0.023]
[1739283082997,0.0011066,97072.0,97071.0,0.023]
[1739283083198,0.00013332,97085.0,97081.0,0.4988934]
[1739283083503,0.154508,97083.0,97082.0,0.023]
[1739283085285,0.154508,97083.0,97082.0,0.022]
[1739283085479,0.02082445,97092.0,97070.0,0.21423226]
[1739283085693,0.02082445,97092.0,97070.0,0.21436558]
[1739283085889,0.154514,97079.0,97070.0,0.00013332]
[1739283086098,0.02082445,97092.0,97070.0,0.00013332]
[1739283086099,0.001,97083.0,97070.0,0.00013332]
[1739283086342,0.154518,97076.0,97070.0,0.00013332]
[1739283086544,0.205996,97089.0,97070.0,0.00013332]
[1739283086750,0.154513,97079.0,97070.0,0.00013332]
[1739283086950,0.154515,97078.0,97070.0,0.00013332]
[1739283087123,0.0001066,97083.0,97070.0,0.00013332]
[1739283087334,0.154515,97078.0,97070.0,0.00013332]
[1739283087734,0.0001066,97083.0,97070.0,0.00013332]
[1739283087969,0.154517,97077.0,97070.0,0.00013332]
[1739283088600,0.206011,97082.0,97070.0,0.00013332]
[1739283088803,0.001,97076.0,97070.0,0.00013332]
[1739283089181,0.154515,97078.0,97070.0,0.00013332]
[1739283089411,0.001,97077.0,97070.0,0.00013332]
[1739283089591,0.0001066,97083.0,97070.0,0.00013332]
[1739283089797,0.154515,97078.0,97070.0,0.00013332]
[1739283090012,0.154515,97078.0,97070.0,0.21536558]
[1739283090518,0.0001066,97083.0,97070.0,0.21536558]
[1739283090746,0.154511,97080.0,97070.0,0.21536558]
[1739283090920,0.154526,97071.0,97070.0,0.00113332]
[1739283091468,0.154526,97071.0,97070.0,0.00013332]
[1739283092618,0.155526,97071.0,97070.0,0.00013332]
[1739283093209,0.154526,97071.0,97070.0,0.00013332]
[1739283093406,0.158526,97071.0,97070.0,0.00013332]
[1739283094268,0.160526,97071.0,97070.0,0.00013332]
[1739283094502,0.18123364,97071.0,97070.0,0.00013332]
[1739283095455,0.17723364,97071.0,97070.0,0.00013332]
[1739283095660,0.17723364,97071.0,97051.0,0.023]
[1739283095661,0.206039,97069.0,97050.0,0.12198024]
[1739283096028,0.10250365,97069.0,97050.0,0.12198024]
[1739283096193,0.154555,97053.0,97050.0,0.12198024]
[1739283096397,0.154559,97050.0,97043.0,0.14284693]
[1739283096918,0.206053,97063.0,97043.0,0.14284693]
[1739283097145,0.206041,97068.0,97050.0,0.14284693]
[1739283097426,0.206065,97057.0,97050.0,0.14284693]
[1739283097584,0.154552,97055.0,97050.0,0.14284693]
[1739283097789,0.154535,97066.0,97053.0,0.154554]
[1739283097988,0.15454,97063.0,97060.0,0.14284693]
[1739283098207,0.206053,97063.0,97053.0,0.14284693]
[1739283098412,0.154539,97063.0,97053.0,0.14284693]
[1739283098609,0.15454,97062.0,97053.0,0.14184693]
[1739283098807,0.154538,97063.0,97053.0,0.14184693]
[1739283099030,0.206032,97073.0,97053.0,0.14184693]
[1739283099232,0.206043,97067.0,97053.0,0.14184693]
[1739283099901,0.154542,97061.0,97053.0,0.14184693]
[1739283100265,0.206039,97069.0,97053.0,0.14184693]
[1739283100685,0.15455,97056.0,97053.0,0.14184693]
[1739283100904,0.02584079,97071.0,97050.0,0.00022365]
[1739283100905,0.154552,97055.0,97050.0,0.00022365]
[1739283101113,0.002,97067.0,97050.0,0.00022365]
[1739283101114,0.206047,97065.0,97050.0,0.00022365]
[1739283101320,0.154534,97066.0,97050.0,0.00022365]
[1739283101721,0.154535,97065.0,97050.0,0.00022365]
[1739283101931,0.206062,97058.0,97050.0,0.00022365]
[1739283102134,0.001,97061.0,97053.0,0.001]
[1739283102348,0.154552,97055.0,97053.0,0.001]
[1739283102560,0.154551,97055.0,97050.0,0.00022365]
[1739283102999,0.05141423,97135.0,97050.0,0.00022365]
[1739283103173,0.30853965,97070.0,97050.0,0.00022365]
[1739283103494,0.154552,97055.0,97050.0,0.00022365]
[1739283103789,0.30853965,97070.0,97050.0,0.00022365]
[1739283104320,0.154548,97057.0,97050.0,0.00022365]
[1739283104523,0.154553,97054.0,97050.0,0.00022365]
[1739283104770,0.20607,97054.0,97050.0,0.00022365]
[1739283104936,0.154555,97053.0,97050.0,0.00122365]
[1739283105555,0.20607,97054.0,97050.0,0.00122365]
[1739283105922,0.20607,97054.0,97050.0,0.00022365]
[1739283106120,0.154552,97055.0,97050.0,0.00022365]
[1739283106397,0.001,97054.0,97050.0,0.00122365]
[1739283106995,0.154554,97053.0,97050.0,0.00122365]
[1739283107188,0.154556,97052.0,97050.0,0.00122365]
[1739283107358,0.001,97054.0,97050.0,0.00122365]
[1739283107359,0.154557,97051.0,97050.0,0.00122365]
[1739283108046,0.154557,97051.0,97050.0,0.00022365]
[1739283108249,0.154557,97051.0,97050.0,0.00122365]
[1739283108770,0.154557,97051.0,97050.0,0.00022365]
[1739283109228,0.155557,97051.0,97050.0,0.00122365]
[1739283109683,0.154557,97051.0,97050.0,0.00022365]
[1739283109873,0.155557,97051.0,97050.0,0.00122365]
[1739283110477,0.001,97051.0,97050.0,0.00122365]
[1739283111111,0.206067,97056.0,97050.0,0.00022365]
[1739283111112,0.154551,97056.0,97050.0,0.00022365]
[1739283111312,0.154552,97055.0,97050.0,0.00022365]
[1739283111508,0.001,97051.0,97050.0,0.00122365]
[1739283111917,0.154553,97054.0,97050.0,0.00022365]
[1739283112345,0.154553,97054.0,97050.0,0.00122365]
[1739283112517,0.09090059,97061.0,97050.0,0.00122365]
[1739283112715,0.20606,97059.0,97050.0,0.00022365]
[1739283113038,0.154551,97055.0,97050.0,0.00122365]
[1739283113444,0.09090059,97051.0,97050.0,0.00122365]
[1739283114671,0.09090059,97051.0,97050.0,0.00022365]
[1739283115896,0.09190059,97051.0,97050.0,0.00122365]
[1739283118190,0.001,97051.0,97050.0,0.00122365]
[1739283124801,0.03097875,97051.0,97050.0,0.00122365]
[1739283134289,0.03097875,97051.0,97050.0,0.17878265]
[1739283134492,0.001,97051.0,97050.0,0.2812863]
[1739283134699,0.001,97051.0,97050.0,0.02422365]
[1739283134917,0.155557,97051.0,97050.0,0.00122365]
[1739283135118,0.18556281,97051.0,97050.0,0.00122365]
[1739283135401,0.18456281,97051.0,97050.0,0.00022365]
[1739283135603,0.18556281,97051.0,97050.0,0.00122365]
[1739283135937,0.18456281,97051.0,97050.0,0.00022365]
[1739283136525,0.18456281,97051.0,97050.0,0.00122365]
[1739283136526,0.03100581,97051.0,97050.0,0.00122365]
[1739283136760,0.18556281,97051.0,97050.0,0.00122365]
[1739283138278,0.19614133,97051.0,97050.0,0.00122365]
[1739283138476,0.44864498,97051.0,97050.0,0.00122365]
[1739283138802,5.57824498,97051.0,97050.0,0.00122365]
[1739283139428,0.154616,97014.0,97013.0,0.0392405]
[1739283139812,0.0483,97037.0,97004.0,0.14284693]
[1739283140023,0.0796,97028.0,96992.0,0.0485]
[1739283140227,0.154637,97001.0,96992.0,0.0485]
[1739283140658,0.154637,97001.0,96999.0,0.00035708]
[1739283140917,0.154599,97025.0,97000.0,0.10250365]
[1739283141128,0.02992957,97024.0,97016.0,0.023]
[1739283141344,0.003,97037.0,97018.0,0.023]
[1739283141542,0.154596,97027.0,97018.0,0.12550365]
[1739283141858,0.154596,97027.0,97019.0,0.023]
[1739283142059,0.154582,97036.0,97025.0,0.023]
[1739283142261,0.001,97024.0,97021.0,0.023]
[1739283142516,0.001,97024.0,97020.0,0.10250365]
[1739283142517,0.001,97024.0,97023.0,0.229134]
[1739283142925,0.154584,97035.0,97027.0,0.023]
[1739283143224,0.02049974,97037.0,97027.0,0.023]
[1739283143438,0.02049974,97037.0,97031.0,0.023]
[1739283143743,0.154582,97036.0,97029.0,0.023]
[1739283143884,0.02049974,97037.0,97031.0,0.023]
[1739283144289,0.001,97035.0,97031.0,0.023]
[1739283144721,0.02049974,97037.0,97027.0,0.023]
[1739283145038,0.15,97051.0,97028.0,0.10250365]
[1739283145255,0.0002396,97053.0,97030.0,0.14284693]
[1739283145432,0.15457,97043.0,97033.0,0.023]
[1739283145634,0.15457,97043.0,97033.0,0.177586]
[1739283145847,0.09121899,97036.0,97034.0,0.023]
[1739283146043,0.09121899,97036.0,97034.0,0.177584]
[1739283146216,0.09121899,97036.0,97032.0,0.177587]
[1739283146420,0.09121899,97036.0,97031.0,0.023]
[1739283146623,0.09221899,97036.0,97031.0,0.023]
[1739283146823,0.09121899,97036.0,97031.0,0.023]
[1739283146999,0.09121899,97036.0,97034.0,0.154584]
[1739283147209,0.09121899,97036.0,97035.0,0.20130365]
[1739283147210,0.09221899,97036.0,97035.0,0.20130365]
[1739283147820,0.09321899,97036.0,97035.0,0.20130365]
[1739283148448,0.09421899,97036.0,97035.0,0.20130365]
[1739283148847,0.003,97036.0,97035.0,0.20130365]
[1739283149278,0.002,97036.0,97035.0,0.20130365]
[1739283149628,0.006,97036.0,97035.0,0.2015273]
[1739283149761,0.004,97036.0,97035.0,0.2015273]
[1739283149972,0.09121899,97037.0,97035.0,0.2015273]
[1739283150198,0.09121899,97037.0,97036.0,0.177581]
[1739283150757,0.09121899,97037.0,97036.0,0.28011517]
[1739283150970,0.09121899,97037.0,97036.0,0.27908465]
[1739283152196,0.09221899,97037.0,97036.0,0.32848465]
[1739283152610,0.09121899,97037.0,97036.0,0.32848465]
[1739283153002,0.09321899,97037.0,97036.0,0.32948465]
[1739283153205,0.09321899,97037.0,97036.0,0.32848465]
[1739283153407,0.154548,97057.0,97037.0,0.023]
[1739283153634,0.154548,97057.0,97050.0,0.154559]
[1739283153964,0.154547,97058.0,97052.0,0.023]
[1739283154172,0.17495646,97062.0,97052.0,0.177556]
[1739283154323,0.154546,97059.0,97052.0,0.023]
[1739283154725,0.154548,97058.0,97052.0,0.023]
[1739283154928,0.2061765,97054.0,97043.0,0.14284693]
[1739283155139,0.154556,97052.0,97044.0,0.25707065]
[1739283155347,0.154556,97052.0,97044.0,0.10250365]
[1739283155608,0.154556,97052.0,97045.0,0.177566]
[1739283156100,0.0012396,97053.0,97043.0,0.004]
[1739283156314,0.154569,97044.0,97043.0,0.004]
[1739283156803,0.02266667,97036.0,97035.0,0.00022365]
[1739283158611,0.17724767,97036.0,97035.0,0.00022365]
[1739283158986,0.02266667,97036.0,97035.0,0.00022365]
[1739283159132,0.02366667,97036.0,97035.0,0.00222365]
[1739283160174,0.17824767,97036.0,97035.0,0.00322365]
[1739283164540,0.20819711,97036.0,97035.0,0.00322365]
[1739283164729,0.20776774,97036.0,97035.0,0.00322365]
[1739283165514,0.1778183,97036.0,97035.0,0.00322365]
[1739283169635,0.20778094,97036.0,97035.0,0.00322365]
[1739283171025,0.35778094,97036.0,97035.0,0.00322365]
[1739283171232,0.46028459,97036.0,97035.0,0.00322365]
[1739283171708,0.35778094,97036.0,97035.0,0.00322365]
[1739283173925,0.0001066,97037.0,97035.0,0.00322365]
[1739283174130,0.25708465,97036.0,97035.0,0.00122365]
[1739283174459,0.29305439,97036.0,97035.0,0.00022365]
[1739283174659,0.29605439,97036.0,97035.0,0.00022365]
[1739283175085,0.29616099,97036.0,97035.0,0.00022365]
[1739283178617,0.26619125,97036.0,97035.0,0.00022365]
[1739283179102,0.29590824,97036.0,97035.0,0.00022365]
[1739283180670,0.26619125,97036.0,97035.0,0.00022365]
[1739283181612,0.41619125,97036.0,97035.0,0.00022365]
[1739283182059,0.97000214,97036.0,97035.0,0.00022365]
[1739283183252,0.96400214,97036.0,97035.0,0.00022365]
[1739283184059,0.97400214,97036.0,97035.0,0.00022365]
[1739283184638,0.96100214,97036.0,97035.0,0.00022365]
[1739283184891,0.98100214,97036.0,97035.0,0.00022365]
[1739283185184,0.97500214,97036.0,97035.0,0.00022365]
[1739283185390,0.154626,97008.0,97007.0,0.08256914]
[1739283185784,0.15,97035.0,96999.0,0.00022428]
[1739283185929,0.154639,97000.0,96999.0,0.00022428]
[1739283186340,0.206182,97002.0,96999.0,0.00022428]
[1739283186549,0.154639,97000.0,96999.0,0.00035708]
[1739283186979,0.154637,97001.0,96999.0,0.00035708]
[1739283187848,0.154639,97000.0,96999.0,0.00035708]
[1739283188097,0.001,97000.0,96999.0,0.00035708]
[1739283188304,0.001,97000.0,96999.0,0.15499708]
[1739283188479,0.02098866,97000.0,96999.0,0.15499708]
[1739283188639,0.02098866,97000.0,96999.0,0.00035708]
[1739283189646,0.001,97001.0,96999.0,0.00035708]
[1739283189851,0.001,97001.0,97000.0,0.154639]
[1739283190232,0.02062945,97008.0,97000.0,0.154639]
[1739283190872,0.17525545,97008.0,97000.0,0.153639]
[1739283191252,0.02062945,97008.0,96999.0,0.00035708]
[1739283191454,0.154631,97006.0,96999.0,0.00035708]
[1739283191700,0.154628,97007.0,96999.0,0.00035708]
[1739283191948,0.15463,97006.0,96999.0,0.00035708]
[1739283192159,0.02062945,97008.0,96999.0,0.00035708]
[1739283192361,0.154631,97006.0,96999.0,0.00035708]
[1739283192569,0.17525645,97008.0,97000.0,0.154639]
[1739283192781,0.154628,97007.0,97000.0,0.154639]
[1739283193408,0.02062945,97008.0,96999.0,0.00035708]
[1739283193604,0.02162945,97008.0,97001.0,0.154636]
[1739283194094,0.15463,97006.0,96999.0,0.00035708]
[1739283194488,0.17625645,97008.0,96999.0,0.00035708]
[1739283194667,0.17525645,97008.0,96999.0,0.00035708]
[1739283194869,0.17525645,97008.0,97000.0,0.001]
[1739283195085,0.17525645,97008.0,97000.0,0.155639]
[1739283195411,0.02062945,97008.0,96999.0,0.20654308]
[1739283195563,0.02062945,97008.0,96999.0,0.00035708]
[1739283195770,0.154629,97007.0,96999.0,0.00035708]
[1739283195991,0.02062945,97008.0,96999.0,0.15499708]
[1739283196519,0.09116974,97001.0,97000.0,0.154639]
[1739283196872,0.09116974,97001.0,96999.0,0.15599708]
[1739283197302,0.09116974,97001.0,96999.0,0.15499708]
[1739283197673,0.09216974,97001.0,97000.0,0.001]
[1739283198154,0.09116974,97001.0,96999.0,0.15499708]
[1739283198350,0.09216974,97001.0,96999.0,0.15599708]